{"text_format":"3","workbook":"xlsx","n_sheets":6,"sheets":["Start","Übersicht","Ausgaben und Einkünfte","Budgetbericht","Datenlisten","Kategorie PivotTable"],"not_rendered":{"charts":3,"defined_names":23,"pivot_tables":2},"read":"whole","date_system":"1900"}

{"sheet":"Start","index":0,"n_rows":8,"n_cols":2,"rows_kept":8}
[null,"Über diese Vorlage"]
[null,"Verwenden Sie diese Vorlage zum Erstellen eines halbmonatlichen Haushaltsbudgets."]
[null,"Das Arbeitsblatt \"Übersicht\" enthält Diagramme für monatliche und jährliche Gesamtsummen sowie eine Tabelle für halbmonatliche Einkünfte und Ausgaben."]
[null,"Geben Sie Kategorien in das Arbeitsblatt \"Datenlisten\" und Werte in das Arbeitsblatt \"Einkünfte und Ausgaben\" ein."]
[null,"Aktualisieren Sie die PivotTable im Arbeitsblatt \"Budgetbericht\"."]
[null,"Hinweis:"]
[null,"Weitere Anweisungen wurden in Spalte A auf allen Arbeitsblättern bereitgestellt. Diese Texte wurden absichtlich ausgeblendet. Um die Texte zu entfernen, wählen Sie Spalte A und dann ENTF aus. "]
[null,"Um mehr über Tabellen zu erfahren, drücken Sie die UMSCHALTTASTE und dann F10 innerhalb einer Tabelle, und wählen Sie die Option TABELLE und dann ALTERNATIVER TEXT aus. Bei PivotTables drücken Sie die UMSCHALTTASTE und dann innerhalb einer Tabelle F10, wählen Sie die Option \"PIVOTTABLE-OPTIONEN\" und dann die Registerkarte \"ALTERNATIVER TEXT\" aus."]

{"sheet":"Übersicht","index":1,"n_rows":12,"n_cols":15,"rows_kept":12,"merged":[[0,1,0,13],[1,2,1,7]]}
["Erstellen Sie in diesem Arbeitsblatt eine Übersicht für monatliche und jährliche Gesamtsummen sowie für halbmonatliche Einkünfte und Ausgaben. Nützliche Anweisungen zum Verwenden dieses Arbeitsblatts befinden sich in Zellen in dieser Spalte. Der Titel dieser Arbeitsmappe befindet sich in der Zelle rechts und der Arbeitsblatttitel in Zelle O1.","Halbmonatliches Haushaltsbudget",{"$nulls":12},"ÜBERSICHT"]
["Verwenden Sie den Schieberegler in Zelle C2, um den Monat in der Zelle rechts zu ändern. Um das Jahr in Zelle I2 zu ändern, verwenden Sie den Schieberegler in Zelle J2.",{"$f":"CHOOSE(MonatNummer,\"JANUAR\",\"FEBRUAR\",\"MÄRZ\",\"APRIL\",\"MAI\",\"JUNI\",\"JULI\",\"AUGUST\",\"SEPTEMBER\",\"OKTOBER\",\"NOVEMBER\",\"DEZEMBER\")","v":"DEZEMBER"},12,{"$nulls":5},2022]
["Die Beschriftung \"Monatssummen\" befindet sich in der Zelle rechts und die Beschriftung \"Jahressummen\" in Zelle I3.","MONATSSUMMEN",{"$nulls":6},"JAHRESSUMMEN"]
["Das Balkendiagramm, in dem die monatlichen Einkünfte mit den monatlichen Ausgaben verglichen werden, befindet sich in Zelle C4. Das Balkendiagramm, in dem die Gesamtsummen der jährlichen Einkünfte mit den Gesamtausgaben des Jahres verglichen werden, befindet sich in Zelle J4. Die nächste Anweisung finden Sie in Zelle A8.","EINKÜNFTE",null,{"$f":"MonatlicheAusgabenGesamt","v":{"v":0,"d":"0 €"}},{"$nulls":4},"EINKÜNFTE",null,null,{"$f":"JährlicheAusgabenGesamt","v":{"v":10742,"d":"10,742 €"}}]
[null,"AUSGABEN",null,{"$f":"MonatlicheEinkünfteGesamt","v":{"v":0,"d":"0 €"}},{"$nulls":4},"AUSGABEN",null,null,{"$f":"JährlicheEinkünfteGesamt","v":{"v":13200,"d":"13,200 €"}}]
[]
[]
["Die Übersichtstabelle, die in der Zelle rechts beginnt, wird automatisch aktualisiert.","Kategorie","JANUAR","FEBRUAR","MÄRZ","APRIL","MAI","JUNI","JULI","AUGUST","SEPTEMBER","OKTOBER","NOVEMBER","DEZEMBER","Sparkline"]
[null,"Einkünfte 1-15",{"$f":"SUMIFS(Einkünfte[BETRAG],Einkünfte[DATUM],\"<=\"&DtMitte,Einkünfte[DATUM],\">=\"&DtAnfang)","v":{"v":0,"d":"0.00 €"}},{"$f":"SUMIFS(Einkünfte[BETRAG],Einkünfte[DATUM],\"<=\"&DtMitte,Einkünfte[DATUM],\">=\"&DtAnfang)","v":{"v":0,"d":"0.00 €"}},{"$f":"SUMIFS(Einkünfte[BETRAG],Einkünfte[DATUM],\"<=\"&DtMitte,Einkünfte[DATUM],\">=\"&DtAnfang)","v":{"v":0,"d":"0.00 €"}},{"$f":"SUMIFS(Einkünfte[BETRAG],Einkünfte[DATUM],\"<=\"&DtMitte,Einkünfte[DATUM],\">=\"&DtAnfang)","v":{"v":5700,"d":"5,700.00 €"}},{"$f":"SUMIFS(Einkünfte[BETRAG],Einkünfte[DATUM],\"<=\"&DtMitte,Einkünfte[DATUM],\">=\"&DtAnfang)","v":{"v":0,"d":"0.00 €"}},{"$f":"SUMIFS(Einkünfte[BETRAG],Einkünfte[DATUM],\"<=\"&DtMitte,Einkünfte[DATUM],\">=\"&DtAnfang)","v":{"v":0,"d":"0.00 €"}},{"$f":"SUMIFS(Einkünfte[BETRAG],Einkünfte[DATUM],\"<=\"&DtMitte,Einkünfte[DATUM],\">=\"&DtAnfang)","v":{"v":0,"d":"0.00 €"}},{"$f":"SUMIFS(Einkünfte[BETRAG],Einkünfte[DATUM],\"<=\"&DtMitte,Einkünfte[DATUM],\">=\"&DtAnfang)","v":{"v":0,"d":"0.00 €"}},{"$f":"SUMIFS(Einkünfte[BETRAG],Einkünfte[DATUM],\"<=\"&DtMitte,Einkünfte[DATUM],\">=\"&DtAnfang)","v":{"v":0,"d":"0.00 €"}},{"$f":"SUMIFS(Einkünfte[BETRAG],Einkünfte[DATUM],\"<=\"&DtMitte,Einkünfte[DATUM],\">=\"&DtAnfang)","v":{"v":0,"d":"0.00 €"}},{"$f":"SUMIFS(Einkünfte[BETRAG],Einkünfte[DATUM],\"<=\"&DtMitte,Einkünfte[DATUM],\">=\"&DtAnfang)","v":{"v":0,"d":"0.00 €"}},{"$f":"SUMIFS(Einkünfte[BETRAG],Einkünfte[DATUM],\"<=\"&DtMitte,Einkünfte[DATUM],\">=\"&DtAnfang)","v":{"v":0,"d":"0.00 €"}}]
[null,"Einkünfte 16-Monatsende",{"$f":"SUMIFS(Einkünfte[BETRAG],Einkünfte[DATUM],\"<=\"&DtEnde,Einkünfte[DATUM],\">=\"&DtMitte+1)","v":{"v":0,"d":"0.00 €"}},{"$f":"SUMIFS(Einkünfte[BETRAG],Einkünfte[DATUM],\"<=\"&DtEnde,Einkünfte[DATUM],\">=\"&DtMitte+1)","v":{"v":0,"d":"0.00 €"}},{"$f":"SUMIFS(Einkünfte[BETRAG],Einkünfte[DATUM],\"<=\"&DtEnde,Einkünfte[DATUM],\">=\"&DtMitte+1)","v":{"v":0,"d":"0.00 €"}},{"$f":"SUMIFS(Einkünfte[BETRAG],Einkünfte[DATUM],\"<=\"&DtEnde,Einkünfte[DATUM],\">=\"&DtMitte+1)","v":{"v":2600,"d":"2,600.00 €"}},{"$f":"SUMIFS(Einkünfte[BETRAG],Einkünfte[DATUM],\"<=\"&DtEnde,Einkünfte[DATUM],\">=\"&DtMitte+1)","v":{"v":0,"d":"0.00 €"}},{"$f":"SUMIFS(Einkünfte[BETRAG],Einkünfte[DATUM],\"<=\"&DtEnde,Einkünfte[DATUM],\">=\"&DtMitte+1)","v":{"v":0,"d":"0.00 €"}},{"$f":"SUMIFS(Einkünfte[BETRAG],Einkünfte[DATUM],\"<=\"&DtEnde,Einkünfte[DATUM],\">=\"&DtMitte+1)","v":{"v":0,"d":"0.00 €"}},{"$f":"SUMIFS(Einkünfte[BETRAG],Einkünfte[DATUM],\"<=\"&DtEnde,Einkünfte[DATUM],\">=\"&DtMitte+1)","v":{"v":0,"d":"0.00 €"}},{"$f":"SUMIFS(Einkünfte[BETRAG],Einkünfte[DATUM],\"<=\"&DtEnde,Einkünfte[DATUM],\">=\"&DtMitte+1)","v":{"v":0,"d":"0.00 €"}},{"$f":"SUMIFS(Einkünfte[BETRAG],Einkünfte[DATUM],\"<=\"&DtEnde,Einkünfte[DATUM],\">=\"&DtMitte+1)","v":{"v":0,"d":"0.00 €"}},{"$f":"SUMIFS(Einkünfte[BETRAG],Einkünfte[DATUM],\"<=\"&DtEnde,Einkünfte[DATUM],\">=\"&DtMitte+1)","v":{"v":0,"d":"0.00 €"}},{"$f":"SUMIFS(Einkünfte[BETRAG],Einkünfte[DATUM],\"<=\"&DtEnde,Einkünfte[DATUM],\">=\"&DtMitte+1)","v":{"v":0,"d":"0.00 €"}}]
[null,"Ausgaben 1-15",{"$f":"SUMIFS(Ausgaben[BETRAG],Ausgaben[DATUM],\"<=\"&DtMitte+1,Ausgaben[DATUM],\">=\"&DtAnfang)","v":{"v":0,"d":"0.00 €"}},{"$f":"SUMIFS(Ausgaben[BETRAG],Ausgaben[DATUM],\"<=\"&DtMitte+1,Ausgaben[DATUM],\">=\"&DtAnfang)","v":{"v":0,"d":"0.00 €"}},{"$f":"SUMIFS(Ausgaben[BETRAG],Ausgaben[DATUM],\"<=\"&DtMitte+1,Ausgaben[DATUM],\">=\"&DtAnfang)","v":{"v":0,"d":"0.00 €"}},{"$f":"SUMIFS(Ausgaben[BETRAG],Ausgaben[DATUM],\"<=\"&DtMitte+1,Ausgaben[DATUM],\">=\"&DtAnfang)","v":{"v":225,"d":"225.00 €"}},{"$f":"SUMIFS(Ausgaben[BETRAG],Ausgaben[DATUM],\"<=\"&DtMitte+1,Ausgaben[DATUM],\">=\"&DtAnfang)","v":{"v":0,"d":"0.00 €"}},{"$f":"SUMIFS(Ausgaben[BETRAG],Ausgaben[DATUM],\"<=\"&DtMitte+1,Ausgaben[DATUM],\">=\"&DtAnfang)","v":{"v":0,"d":"0.00 €"}},{"$f":"SUMIFS(Ausgaben[BETRAG],Ausgaben[DATUM],\"<=\"&DtMitte+1,Ausgaben[DATUM],\">=\"&DtAnfang)","v":{"v":0,"d":"0.00 €"}},{"$f":"SUMIFS(Ausgaben[BETRAG],Ausgaben[DATUM],\"<=\"&DtMitte+1,Ausgaben[DATUM],\">=\"&DtAnfang)","v":{"v":0,"d":"0.00 €"}},{"$f":"SUMIFS(Ausgaben[BETRAG],Ausgaben[DATUM],\"<=\"&DtMitte+1,Ausgaben[DATUM],\">=\"&DtAnfang)","v":{"v":0,"d":"0.00 €"}},{"$f":"SUMIFS(Ausgaben[BETRAG],Ausgaben[DATUM],\"<=\"&DtMitte+1,Ausgaben[DATUM],\">=\"&DtAnfang)","v":{"v":0,"d":"0.00 €"}},{"$f":"SUMIFS(Ausgaben[BETRAG],Ausgaben[DATUM],\"<=\"&DtMitte+1,Ausgaben[DATUM],\">=\"&DtAnfang)","v":{"v":0,"d":"0.00 €"}},{"$f":"SUMIFS(Ausgaben[BETRAG],Ausgaben[DATUM],\"<=\"&DtMitte+1,Ausgaben[DATUM],\">=\"&DtAnfang)","v":{"v":0,"d":"0.00 €"}}]
[null,"Ausgaben 16-Monatsende",{"$f":"SUMIFS(Ausgaben[BETRAG],Ausgaben[DATUM],\"<=\"&DtEnde,Ausgaben[DATUM],\">=\"&DtMitte+1)","v":{"v":0,"d":"0.00 €"}},{"$f":"SUMIFS(Ausgaben[BETRAG],Ausgaben[DATUM],\"<=\"&DtEnde,Ausgaben[DATUM],\">=\"&DtMitte+1)","v":{"v":1075,"d":"1,075.00 €"}},{"$f":"SUMIFS(Ausgaben[BETRAG],Ausgaben[DATUM],\"<=\"&DtEnde,Ausgaben[DATUM],\">=\"&DtMitte+1)","v":{"v":0,"d":"0.00 €"}},{"$f":"SUMIFS(Ausgaben[BETRAG],Ausgaben[DATUM],\"<=\"&DtEnde,Ausgaben[DATUM],\">=\"&DtMitte+1)","v":{"v":1450,"d":"1,450.00 €"}},{"$f":"SUMIFS(Ausgaben[BETRAG],Ausgaben[DATUM],\"<=\"&DtEnde,Ausgaben[DATUM],\">=\"&DtMitte+1)","v":{"v":0,"d":"0.00 €"}},{"$f":"SUMIFS(Ausgaben[BETRAG],Ausgaben[DATUM],\"<=\"&DtEnde,Ausgaben[DATUM],\">=\"&DtMitte+1)","v":{"v":0,"d":"0.00 €"}},{"$f":"SUMIFS(Ausgaben[BETRAG],Ausgaben[DATUM],\"<=\"&DtEnde,Ausgaben[DATUM],\">=\"&DtMitte+1)","v":{"v":0,"d":"0.00 €"}},{"$f":"SUMIFS(Ausgaben[BETRAG],Ausgaben[DATUM],\"<=\"&DtEnde,Ausgaben[DATUM],\">=\"&DtMitte+1)","v":{"v":0,"d":"0.00 €"}},{"$f":"SUMIFS(Ausgaben[BETRAG],Ausgaben[DATUM],\"<=\"&DtEnde,Ausgaben[DATUM],\">=\"&DtMitte+1)","v":{"v":0,"d":"0.00 €"}},{"$f":"SUMIFS(Ausgaben[BETRAG],Ausgaben[DATUM],\"<=\"&DtEnde,Ausgaben[DATUM],\">=\"&DtMitte+1)","v":{"v":0,"d":"0.00 €"}},{"$f":"SUMIFS(Ausgaben[BETRAG],Ausgaben[DATUM],\"<=\"&DtEnde,Ausgaben[DATUM],\">=\"&DtMitte+1)","v":{"v":0,"d":"0.00 €"}},{"$f":"SUMIFS(Ausgaben[BETRAG],Ausgaben[DATUM],\"<=\"&DtEnde,Ausgaben[DATUM],\">=\"&DtMitte+1)","v":{"v":0,"d":"0.00 €"}}]

{"sheet":"Ausgaben und Einkünfte","index":2,"n_rows":36,"n_cols":9,"rows_kept":36,"merged":[[0,1,0,6],[0,7,0,8]]}
["Erstellen Sie in diesem Arbeitsblatt eine Liste der Einkünfte und Ausgaben. Nützliche Anweisungen zum Verwenden dieses Arbeitsblatts befinden sich in Zellen in dieser Spalte. Der Titel der Arbeitsmappe befindet sich in der Zelle rechts und der Arbeitsblatttitel in Zelle H1.",{"$f":"Halb_Monatliches_Haushalts_Budget_Titel","v":"Halbmonatliches Haushaltsbudget"},{"$nulls":5},"EINKÜNFTE UND AUSGABEN"]
["Die Beschriftung \"Einkommen\" befindet sich in der Zelle rechts und die Beschriftung \"Ausgaben\" in Zelle F2.","EINKÜNFTE",{"$nulls":3},"AUSGABEN"]
["Geben Sie Details in die Tabelle \"Einkünfte\" ab der Zelle rechts und in die Tabelle \"Ausgaben\" ab Zelle F3 ein.","DATUM","BESCHREIBUNG","BETRAG",null,"DATUM","KATEGORIE","BESCHREIBUNG","BETRAG"]
[null,{"$f":"TODAY()","v":"2022-05-13"},"Bonus",{"v":500,"d":"500.00 €"},null,{"$f":"TODAY()","v":"2022-05-13"},"Gesundheit","Versicherung",{"v":500,"d":"500.00 €"}]
[null,{"$f":"TODAY()-14","v":"2022-04-29"},"Davids Gehalt",{"v":1300,"d":"1,300.00 €"},null,{"$f":"TODAY()-7","v":"2022-05-06"},"Haushalt","Hypothek",{"v":1000,"d":"1,000.00 €"}]
[null,{"$f":"TODAY()-14","v":"2022-04-29"},"Pattis Gehalt",{"v":1300,"d":"1,300.00 €"},null,"2022-05-06","Haushalt","Strom",{"v":100,"d":"100.00 €"}]
[null,{"$f":"TODAY()-28","v":"2022-04-15"},"Davids Gehalt",{"v":1500,"d":"1,500.00 €"},null,"2022-05-06","Haushalt","Wasser/Abwasser",{"v":50,"d":"50.00 €"}]
[null,{"$f":"TODAY()-28","v":"2022-04-15"},"Pattis Gehalt",{"v":1600,"d":"1,600.00 €"},null,"2022-05-06","Haushalt","Müllabfuhr",{"v":25,"d":"25.00 €"}]
[null,{"$f":"TODAY()-42","v":"2022-04-01"},"Davids Gehalt",{"v":1300,"d":"1,300.00 €"},null,"2022-05-06","Haushalt","Mobiltelefon",{"v":100,"d":"100.00 €"}]
[null,{"$f":"TODAY()-42","v":"2022-04-01"},"Pattis Gehalt",{"v":1300,"d":"1,300.00 €"},null,"2022-05-06","Haushalt","Mobiltelefon",{"v":30,"d":"30.00 €"}]
[null,{"$f":"TODAY()-56","v":"2022-03-18"},"Davids Gehalt",{"v":1500,"d":"1,500.00 €"},null,"2022-05-06","Haushalt","Hypothek",{"v":50,"d":"50.00 €"}]
[null,{"$f":"TODAY()-56","v":"2022-03-18"},"Pattis Gehalt",{"v":1600,"d":"1,600.00 €"},null,"2022-05-06","Haushalt","Mobiltelefon",{"v":50,"d":"50.00 €"}]
[null,{"$f":"TODAY()-70","v":"2022-03-04"},"Davids Gehalt",{"v":1300,"d":"1,300.00 €"},null,{"$f":"TODAY()-7","v":"2022-05-06"},"Haushalt","Mobiltelefon",{"v":25,"d":"25.00 €"}]
[{"$nulls":5},{"$f":"TODAY()-8","v":"2022-05-05"},"Haushalt","Strom",{"v":100,"d":"100.00 €"}]
[{"$nulls":5},{"$f":"TODAY()-9","v":"2022-05-04"},"Unterhaltung","Filme",{"v":37,"d":"37.00 €"}]
[{"$nulls":5},{"$f":"TODAY()-10","v":"2022-05-03"},"Futter","Lebensmittel",{"v":350,"d":"350.00 €"}]
[{"$nulls":5},{"$f":"TODAY()-11","v":"2022-05-02"},"Futter","Ausgehen",{"v":75,"d":"75.00 €"}]
[{"$nulls":5},{"$f":"TODAY()-12","v":"2022-05-01"},"Kinder","Mittagessen",{"v":150,"d":"150.00 €"}]
[{"$nulls":5},{"$f":"TODAY()-13","v":"2022-04-30"},"Anlagekonten","Spareinlagen",{"v":250,"d":"250.00 €"}]
[{"$nulls":5},{"$f":"TODAY()-14","v":"2022-04-29"},"Anlagekonten","Anlagekonto",{"v":250,"d":"250.00 €"}]
[{"$nulls":5},{"$f":"TODAY()-15","v":"2022-04-28"},"Persönliches","Fitness-Club",{"v":100,"d":"100.00 €"}]
[{"$nulls":5},{"$f":"TODAY()-16","v":"2022-04-27"},"Haustiere","Futter",{"v":50,"d":"50.00 €"}]
[{"$nulls":5},{"$f":"TODAY()-20","v":"2022-04-23"},"Haustiere","Pflege",{"v":50,"d":"50.00 €"}]
[{"$nulls":5},{"$f":"TODAY()-20","v":"2022-04-23"},"Haustiere","Sonstiges",{"v":50,"d":"50.00 €"}]
[{"$nulls":5},{"$f":"TODAY()-25","v":"2022-04-18"},"Verkehrsmittel","Auto 1 Zahlung ",{"v":300,"d":"300.00 €"}]
[{"$nulls":5},{"$f":"TODAY()-25","v":"2022-04-18"},"Verkehrsmittel","Auto 2 Zahlung ",{"v":350,"d":"350.00 €"}]
[{"$nulls":5},{"$f":"TODAY()-25","v":"2022-04-18"},"Verkehrsmittel","Kfz-Versicherung",{"v":50,"d":"50.00 €"}]
[{"$nulls":5},{"$f":"TODAY()-30","v":"2022-04-13"},"Verkehrsmittel","Kraftstoff",{"v":50,"d":"50.00 €"}]
[{"$nulls":5},{"$f":"TODAY()-31","v":"2022-04-12"},"Verkehrsmittel","Kraftstoff",{"v":25,"d":"25.00 €"}]
[{"$nulls":5},{"$f":"TODAY()-42","v":"2022-04-01"},"Verkehrsmittel","Auto 2 Zahlung ",{"v":150,"d":"150.00 €"}]
[{"$nulls":5},{"$f":"TODAY()-45","v":"2022-03-29"},"Haushalt","Hypothek",{"v":5000,"d":"5,000.00 €"}]
[{"$nulls":5},{"$f":"TODAY()-50","v":"2022-03-24"},"Haushalt","Strom",{"v":200,"d":"200.00 €"}]
[{"$nulls":5},{"$f":"TODAY()-65","v":"2022-03-09"},"Haushalt","Mobiltelefon",{"v":100,"d":"100.00 €"}]
[{"$nulls":5},{"$f":"TODAY()-70","v":"2022-03-04"},"Haushalt","Müllabfuhr",{"v":50,"d":"50.00 €"}]
[{"$nulls":5},{"$f":"TODAY()-75","v":"2022-02-27"},"Haushalt","Hypothek",{"v":1000,"d":"1,000.00 €"}]
[{"$nulls":5},{"$f":"TODAY()-78","v":"2022-02-24"},"Unterhaltung","Filme",{"v":75,"d":"75.00 €"}]

{"sheet":"Budgetbericht","index":3,"n_rows":26,"n_cols":6,"rows_kept":26,"merged":[[0,1,0,4],[1,1,1,3],[4,3,4,5]]}
["Erstellen Sie auf diesem Arbeitsblatt einen Budgetbericht. Nützliche Anweisungen zum Verwenden dieses Arbeitsblatts befinden sich in Zellen in dieser Spalte. Der Titel der Arbeitsmappe befindet sich in der Zelle rechts und der Arbeitsblatttitel in Zelle F1.",{"$f":"Halb_Monatliches_Haushalts_Budget_Titel","v":"Halbmonatliches Haushaltsbudget"},{"$nulls":3},"BUDGETBERICHT"]
["Wählen Sie Jahre, Quartale, Monate oder Tage aus, und verwenden Sie den Schieberegler in der Zelle rechts, um die Ausgaben-PivotTable für den ausgewählten Zeitraum zu erhalten. Das Kategorie-Datenschnitttool zum Filtern der PivotTable-Daten befindet sich in Zelle E2 und das Beschreibungsdatenschnitttool in Zelle F2.","Die Zeitachse zum Filtern befindet sich in dieser Zelle.",null,null,"Das Datenschnitttool zum Filtern der PivotTable-Daten nach \"Kategorie\" befindet sich in dieser Zelle.","Das Datenschnitttool zum Filtern der PivotTable-Daten basierend auf der Beschreibung befindet sich in dieser Zelle."]
["Ein Tipp befindet sich in der Zelle rechts.","Drücken Sie UMSCHALT+F10 in der Ausgaben-PivotTable, und klicken Sie dann auf \"Aktualisieren\", um die Daten in diesem Blatt zu aktualisieren, oder klicken Sie unter der Registerkarte \"Analysieren\"auf \"Aktualisieren\"."]
["Die Beschriftung \"Ausgaben\" befindet sich in der Zelle rechts.","AUSGABEN"]
["Die PivotTable der Ausgaben beginnt in der Zelle rechts. Die Beschriftung \"Gesamtsummen Kategorien\" befindet sich in Zelle D4.","Row Labels","Summe von BETRAG","KATEGORIESUMMEN"]
["Das Kreisdiagramm, in dem die einzelnen Kategoriesummen verglichen werden, befindet sich in Zelle D6.","Auto 1 Zahlung ",{"v":300,"d":"300.00 €"}]
[null,"Auto 2 Zahlung ",{"v":500,"d":"500.00 €"}]
[null,"Kfz-Versicherung",{"v":50,"d":"50.00 €"}]
[null,"Mobiltelefon",{"v":305,"d":"305.00 €"}]
[null,"Strom",{"v":400,"d":"400.00 €"}]
[null,"Kraftstoff",{"v":75,"d":"75.00 €"}]
[null,"Anlagekonto",{"v":250,"d":"250.00 €"}]
[null,"Ausgehen",{"v":75,"d":"75.00 €"}]
[null,"Filme",{"v":112,"d":"112.00 €"}]
[null,"Fitness-Club",{"v":100,"d":"100.00 €"}]
[null,"Futter",{"v":50,"d":"50.00 €"}]
[null,"Hypothek",{"v":7050,"d":"7,050.00 €"}]
[null,"Lebensmittel",{"v":350,"d":"350.00 €"}]
[null,"Mittagessen",{"v":150,"d":"150.00 €"}]
[null,"Müllabfuhr",{"v":75,"d":"75.00 €"}]
[null,"Sonstiges",{"v":50,"d":"50.00 €"}]
[null,"Spareinlagen",{"v":250,"d":"250.00 €"}]
[null,"Versicherung",{"v":500,"d":"500.00 €"}]
[null,"Wasser/Abwasser",{"v":50,"d":"50.00 €"}]
[null,"Pflege",{"v":50,"d":"50.00 €"}]
[null,"Grand Total",{"v":10742,"d":"10,742.00 €"}]

{"sheet":"Datenlisten","index":4,"n_rows":8,"n_cols":13,"rows_kept":8,"merged":[[0,1,0,11]]}
["Geben Sie auf diesem Arbeitsblatt Kategoriedaten ein, um die Dropdownlisten in der Tabelle \"Ausgaben\" auf dem Arbeitsblatt \"Ausgaben und Einkünfte\" zu füllen. Ändern Sie Kategorienamen oder Beschreibungen unter den einzelnen Kategorien, um die Listen zu aktualisieren. Nützliche Anweisungen zum Verwenden dieses Arbeitsblatts befinden sich in Zellen in dieser Spalte. Der Titel der Arbeitsmappe befindet sich in der Zelle rechts und der Arbeitsblatttitel in Zelle M1.",{"$f":"Halb_Monatliches_Haushalts_Budget_Titel","v":"Halbmonatliches Haushaltsbudget"},{"$nulls":10},"DATENLISTEN"]
["Ein Tipp befindet sich in der Zelle rechts.","SETUP         Die nachstehenden Kategoriedaten werden automatisch in die Dropdownlisten in der Tabelle \"Ausgaben\" auf dem Arbeitsblatt \"Ausgaben und Einkünfte\" übertragen. Ändern Sie die Kategorienamen oder die Beschreibungen unter den einzelnen Kategorien, um die Listen zu aktualisieren."]
["Geben Sie Kategorienamen oder Beschreibungen unterhalb jeder Kategorie in der Tabelle ab der Zelle rechts ein oder ändern Sie sie.","Haushalt","Unterhaltung","Futter","Geschenke/Spenden","Kinder","Anlagekonten","Gesundheit","Sonstiges","Persönliches","Haustiere","Steuern/Rechtskosten","Verkehrsmittel"]
[null,"Hypothek","Filme","Lebensmittel","Spenden 1","Bekleidung","Rentenkonto","Arzt/Klinik","Sonstiges","Kleidung","Futter","Bund","Auto 1 Zahlung "]
[null,"Strom","Video/Filme","Ausgehen","Spenden 2","Spielwaren/Spiele","Spareinlagen","Versicherung","Vereinsbeiträge","Haare/Nägel","Zubehör","USt","Auto 2 Zahlung "]
[null,"Wasser/Abwasser","Musik",null,"Spenden 3","Mittagessen","Girokonto",null,null,"Chemische Reinigung","Gesundheit","Kommunalsteuern","Kfz-Versicherung"]
[null,"Müllabfuhr","Konzerte/Theater",null,"Geschenk","Beiträge/Gebühren","Altersvorsorge",null,null,"Fitness-Club","Pflege","Sonstiges","Zulassung/Registrierung"]
[null,"Mobiltelefon","Sportveranstaltungen",null,null,"Schulmaterialien","Anlagekonto",null,null,"Shopping","Sonstiges","Anwalt","Kraftstoff"]

{"sheet":"Kategorie PivotTable","index":5,"n_rows":13,"n_cols":13,"rows_kept":13,"hidden":true}
[null,"Halbmonatliches Haushaltsbudget",{"$nulls":10},"KATEGORIE-PIVOTTABLE"]
[null,"Diese PivotTable dient als Datenquelle für das PivotChart \"Gesamtsummen Kategorien\" im Budgetbericht. "]
[null,"Row Labels","Summe von BETRAG"]
[null,"Kinder",{"v":150,"d":"150 €"}]
[null,"Unterhaltung",{"v":112,"d":"112 €"}]
[null,"Haushalt",{"v":7880,"d":"7,880 €"}]
[null,"Gesundheit",{"v":500,"d":"500 €"}]
[null,"Anlagekonten",{"v":500,"d":"500 €"}]
[null,"Persönliches",{"v":100,"d":"100 €"}]
[null,"Haustiere",{"v":150,"d":"150 €"}]
[null,"Verkehrsmittel",{"v":925,"d":"925 €"}]
[null,"Futter",{"v":425,"d":"425 €"}]
[null,"Grand Total",{"v":10742,"d":"10,742 €"}]